fUST/lending_fUST_20251117
["ID","MTS","AMOUNT","RATE_DAILY","PERIOD"]
[394173157,1763350238631,-151.0,0.0004315,120]
[394173159,1763350238641,-151.0,0.0004315,120]
[394173161,1763350238651,-151.0,0.0004315,120]
[394173163,1763350238660,-151.0,0.0004315,120]
[394173165,1763350238669,-151.0,0.0004315,120]
[394173167,1763350238679,-151.0,0.0004315,120]
[394173169,1763350238688,-151.0,0.0004315,120]
[394173171,1763350238698,-500.0,0.00043173,10]
[394173173,1763350238707,-500.0,0.00043173,10]
[394173174,1763350238716,-150.0,0.00043173,10]
[394173176,1763350238729,-509.45721812,0.00043173,10]
[394173178,1763350238739,-500.0,0.00043173,10]
[394173179,1763350238748,-198.7,0.000432,30]
[394173181,1763350238758,-3837.24,0.000432,14]
[394173182,1763350238767,-969.1,0.000432,14]
[394173183,1763350238777,-250.0,0.00043221,10]
[394173184,1763350238786,-500.0,0.00043376,2]
[394173185,1763350238795,-150.0,0.00043496,31]
[394173186,1763350238805,-500.0,0.0004365,2]
[394173187,1763350238815,-500.0,0.00043665,2]
[394173188,1763350238824,-150.0,0.00043685,13]
[394173189,1763350238834,-1000.0,0.00043721,10]
[394173190,1763350238847,-1000.0,0.00043721,10]
[394173191,1763350238856,-250.0,0.00043721,10]
[394173192,1763350238865,-1041.04800509,0.00043721,10]
[394173193,1763350238875,-350.0,0.00043768,10]
[394173194,1763350238885,-523.68639,0.00043924,2]
[394173195,1763350238895,-548.03589283,0.0004395,30]
[394173196,1763350238905,-6000.0,0.00044,120]
[394173197,1763350238915,-280.7102009,0.0004405,2]
[394173198,1763350238924,-155.61401678,0.00044222,2]
[394173199,1763350238934,-1500.0,0.00044268,10]
[394173200,1763350238944,-1500.0,0.00044268,10]
[394173201,1763350238953,-456.59346641,0.00044268,10]
[394173202,1763350238963,-450.0,0.00044316,10]
[394173203,1763350238973,-2086.7367825,0.00044356,2]
[394173204,1763350238982,-150.0,0.00044516,2]
[394173205,1763350238992,-177.0,0.00044569,120]
[394173206,1763350239002,-500.0,0.00044761,2]
[394173207,1763350239012,-2000.0,0.00044816,10]
[394173208,1763350239022,-2000.0,0.00044816,10]
[394173209,1763350239031,-151.0,0.0004484,120]
[394173210,1763350239041,-151.0,0.0004484,30]
[394173211,1763350239051,-151.0,0.0004484,60]
[394173212,1763350239060,-151.0,0.0004484,90]
[394173213,1763350239071,-151.0,0.0004484,120]
[394173214,1763350239081,-151.0,0.0004484,120]
[394173215,1763350239090,-151.0,0.0004484,120]
[394173216,1763350239099,-153.526501,0.0004484,120]
[394173217,1763350239109,-243.173132,0.0004484,120]
[394173218,1763350239119,-151.0,0.0004484,120]
[394173219,1763350239129,-171.715225,0.0004484,120]
[394173220,1763350239138,-151.0,0.0004484,2]
[394173221,1763350239148,-151.0,0.0004484,2]
[394173222,1763350239158,-151.0,0.0004484,2]
[394173223,1763350239168,-151.0,0.0004484,2]
[394173224,1763350239178,-151.0,0.0004484,120]
[394173225,1763350239189,-151.0,0.0004484,120]
[394173226,1763350239199,-151.0,0.0004484,120]
[394173227,1763350239208,-151.0,0.0004484,120]
[394173228,1763350239218,-151.0,0.0004484,15]
[394173229,1763350239227,-151.0,0.0004484,15]
[394173230,1763350239237,-151.0,0.0004484,120]
[394173231,1763350239247,-151.0,0.0004484,120]
[394173232,1763350239257,-151.0,0.0004484,120]
[394173233,1763350239266,-151.0,0.0004484,120]
[394173234,1763350239277,-237.457625,0.0004484,120]
[394173235,1763350239286,-151.0,0.0004484,120]
[394173236,1763350239295,-237.457625,0.0004484,120]
[394173237,1763350239305,-237.457625,0.0004484,120]
[394173238,1763350239314,-237.457625,0.0004484,120]
[394173239,1763350239323,-483.508934,0.0004484,120]
[394173240,1763350239333,-151.0,0.0004484,120]
[394173241,1763350239342,-151.0,0.0004484,120]
[394173242,1763350239352,-483.508934,0.0004484,120]
[394173243,1763350239361,-483.508934,0.0004484,120]
[394173244,1763350239371,-483.508934,0.0004484,120]
[394173245,1763350239380,-151.0,0.0004484,30]
[394173246,1763350239389,-151.0,0.0004484,120]
[394173247,1763350239399,-151.0,0.0004484,120]
[394173248,1763350239408,-164.809455,0.0004484,120]
[394173249,1763350239418,-151.0,0.0004484,120]
[394173250,1763350239427,-227.49909,0.0004484,120]
[394173251,1763350239436,-151.0,0.0004484,120]
[394173252,1763350239446,-227.49909,0.0004484,120]
[394173253,1763350239455,-151.0,0.0004484,120]
[394173254,1763350239465,-227.49909,0.0004484,120]
[394173255,1763350239474,-227.49909,0.0004484,120]
[394173256,1763350239483,-157.1355,0.0004484,120]
[394173257,1763350239493,-151.0,0.0004484,120]
[394173258,1763350239503,-151.0,0.0004484,120]
[394173259,1763350239512,-151.0,0.0004484,120]
[394173260,1763350239521,-151.0,0.0004484,120]
[394173262,1763350239531,-151.0,0.0004484,120]
[394173264,1763350239540,-151.0,0.0004484,120]
[394173265,1763350239550,-151.0,0.0004484,120]
[394173266,1763350239561,-151.0,0.0004484,120]
[394173267,1763350239571,-50945.6871226,0.0004484,3]
[394173268,1763350239581,-80000.0,0.0004485,118]
[394173269,1763350239590,-151.0,0.0004485,120]
[394173270,1763350239599,-151.0,0.0004485,120]
[394173271,1763350239610,-280.164424,0.0004485,120]
[394173272,1763350239619,-151.0,0.0004485,120]
[394173273,1763350239628,-151.0,0.0004485,120]
[394173274,1763350239638,-151.0,0.0004485,120]
[394173275,1763350239648,-186.367292,0.0004485,120]
[394173276,1763350239657,-186.367292,0.0004485,120]
[394173277,1763350239668,-151.0,0.0004485,120]
[394173278,1763350239677,-186.367292,0.0004485,120]
[394173279,1763350239687,-186.367292,0.0004485,120]
[394173280,1763350239695,-151.0,0.0004485,120]
[394173281,1763350239705,-151.0,0.0004485,120]
[394173282,1763350239714,-151.0,0.0004485,120]
[394173283,1763350239724,-151.0,0.0004485,120]
[394173284,1763350239733,-151.0,0.0004485,120]
[394173285,1763350239742,-151.0,0.0004485,120]
[394173286,1763350239752,-152.768181,0.0004485,120]
[394173287,1763350239761,-151.0,0.0004485,7]
[394173288,1763350239770,-151.0,0.0004485,120]
[394173289,1763350239779,-151.0,0.0004485,120]
[394173291,1763350239789,-151.0,0.0004485,120]
[394173292,1763350239798,-151.0,0.0004485,120]
[394173293,1763350239807,-151.0,0.0004485,120]
[394173294,1763350239816,-151.0,0.0004485,120]
[394173295,1763350239826,-151.0,0.0004485,120]
[394173296,1763350239835,-151.0,0.0004485,120]
[394173298,1763350239845,-151.0,0.0004485,120]
[394173299,1763350239854,-151.0,0.0004485,120]
[394173300,1763350239863,-550.0,0.00044864,10]
[394173301,1763350239873,-720.0,0.00044879,90]
[394173302,1763350239882,-954.0,0.00045,120]
[394173303,1763350239891,-2181.48715976,0.00045,2]
[394173305,1763350239901,-187.48277592,0.00045,120]
[394173306,1763350239910,-6000.0,0.00045,120]
[394173307,1763350239919,-250.0,0.0004503,10]
[394173308,1763350239929,-431.38695596,0.00045364,10]
[394173309,1763350239938,-2500.0,0.00045364,10]
[394173310,1763350239947,-650.0,0.00045412,10]
[394173311,1763350239956,-206.55,0.00045561,120]
[394173312,1763350239965,-150.25529448,0.00045578,10]
[394173313,1763350239974,-280.7102009,0.000456,2]
[394173314,1763350239984,-997.26,0.00045664,60]
[394173315,1763350239993,-500.0,0.00045857,2]
[394173316,1763350240003,-3000.0,0.00045912,10]
[394173317,1763350240012,-750.0,0.0004596,10]
[394173318,1763350240022,-1000.0,0.0004598,2]
[394173319,1763350240031,-1000.0,0.0004598,2]
[394173320,1763350240040,-1000.0,0.0004598,2]
[394173321,1763350240050,-1000.0,0.0004598,2]
[394173322,1763350240060,-1000.0,0.0004598,2]
[394173323,1763350240069,-1000.0,0.0004598,2]
[394173324,1763350240079,-1000.0,0.0004598,2]
[394173325,1763350240089,-1000.0,0.0004598,2]
[394173326,1763350240099,-1000.0,0.0004598,2]
[394173327,1763350240108,-1000.0,0.0004598,2]
[394173328,1763350240118,-1000.0,0.0004598,2]
[394173329,1763350240128,-1000.0,0.0004598,2]
[394173330,1763350240138,-1000.0,0.0004598,2]
[394173331,1763350240149,-1000.0,0.0004598,2]
[394173332,1763350240158,-1000.0,0.0004598,2]
[394173333,1763350240168,-554.86188329,0.0004598,2]
[394173334,1763350240178,-6280.0,0.00046,60]
[394173335,1763350240187,-151.0,0.00046,120]
[394173336,1763350240197,-156.476949,0.00046,120]
[394173337,1763350240206,-151.0,0.00046,120]
[394173338,1763350240216,-151.0,0.00046,120]
[394173339,1763350240225,-151.0,0.00046,120]
[394173340,1763350240236,-154.009917,0.00046,120]
[394173341,1763350240245,-151.0,0.00046,120]
[394173342,1763350240255,-252.058813,0.00046,120]
[394173343,1763350240265,-395.5698071,0.00046018,30]
[394173344,1763350240275,-395.5698071,0.00046018,30]
[394173345,1763350240284,-395.5698071,0.00046018,30]
[394173346,1763350240294,-254.023948,0.00046018,30]
[394173347,1763350240303,-627.2207473,0.00046018,30]
[394173348,1763350240312,-397.0095852,0.00046018,30]
[394173349,1763350240321,-629.82053164,0.00046053,2]
[394173350,1763350240330,-969.1,0.000461,14]
[394173351,1763350240339,-930.52966827,0.0004646,10]
[394173352,1763350240349,-850.0,0.00046508,10]
[394173353,1763350240358,-190.73436113,0.00046549,2]
[394173354,1763350240367,-343.32185004,0.00046549,2]
[394173355,1763350240376,-204.0,0.00046569,120]
[394173356,1763350240385,-151.0,0.000469,27]
[394173357,1763350240395,-500.0,0.00046953,2]
[394173358,1763350240406,-550.00117152,0.00047056,10]
[394173359,1763350240415,-280.7102009,0.0004715,2]
[394173360,1763350240424,-156.82014466,0.00047371,5]
[394173361,1763350240434,-175.48,0.00047484,2]
[394173362,1763350240443,-500.0,0.00047594,120]
[394173363,1763350240525,-500.0,0.00047594,120]
[394173364,1763350240535,-194.84878386,0.00047594,120]
[394173365,1763350240545,-500.0,0.00047594,120]
[394173366,1763350240554,-500.0,0.00047594,120]
[394173367,1763350240566,-151.0,0.00047594,120]
[394173368,1763350240575,-500.0,0.00047594,120]
[394173369,1763350240584,-151.0,0.00047594,120]
[394173370,1763350240594,-500.0,0.00047594,120]
[394173371,1763350240605,-500.0,0.00047594,120]
[394173372,1763350240614,-500.0,0.00047594,120]
[394173373,1763350240623,-500.0,0.00047594,120]
[394173374,1763350240633,-442.95740837,0.00047594,120]
[394173375,1763350240643,-500.0,0.00047594,120]
[394173376,1763350240652,-500.0,0.00047594,120]
[394173377,1763350240662,-151.0,0.000476,22]
[394173378,1763350240672,-155.292249,0.00047705,31]
[394173379,1763350240682,-1000.0,0.00047725,10]
[394173380,1763350240691,-500.0,0.00047731,120]
[394173381,1763350240701,-500.0,0.00047731,120]
[394173382,1763350240710,-500.0,0.00047731,120]
[394173383,1763350240719,-501.49330235,0.00047731,120]
[394173384,1763350240729,-151.0,0.00047731,120]
[394173385,1763350240739,-500.0,0.00047731,120]
[394173386,1763350240748,-151.0,0.00047731,120]
[394173387,1763350240758,-500.0,0.00047731,120]
[394173388,1763350240769,-501.66721995,0.00047731,120]
[394173389,1763350240778,-508.86598521,0.00047731,120]
[394173390,1763350240789,-500.0,0.00047868,120]
[394173391,1763350240798,-500.0,0.00047868,120]
[394173392,1763350240807,-455.20870092,0.00047868,120]
[394173393,1763350240817,-246.96275572,0.00047868,120]
[394173394,1763350240826,-500.0,0.00047868,120]
[394173395,1763350240835,-155.20734413,0.00047868,120]
[394173396,1763350240844,-500.0,0.00047868,120]
[394173397,1763350240853,-150.0,0.00047998,23]
[394173398,1763350240863,-605.20533292,0.00048005,120]
[394173399,1763350240872,-505.19797955,0.00048005,120]
[394173400,1763350240882,-500.0,0.00048005,120]
[394173401,1763350240893,-398.44491273,0.00048005,120]
[394173402,1763350240902,-500.0,0.00048049,2]
[394173403,1763350240911,-500.0,0.00048142,120]
[394173404,1763350240922,-151.0,0.000482,27]
[394173405,1763350240932,-151.0,0.000482,27]
[394173406,1763350240943,-500.0,0.00048279,120]
[394173407,1763350240952,-162.60060705,0.00048416,120]
[394173408,1763350240961,-150.0,0.00048498,29]
[394173409,1763350240971,-231.0,0.00048569,120]
[394173410,1763350240980,-150.0,0.00048598,14]
[394173411,1763350240989,-150.0,0.00048697,49]
[394173412,1763350240998,-11537.80019329,0.000487,2]
[394173413,1763350241007,-88888.0,0.000487,120]
[394173414,1763350241017,-280.7102009,0.000487,2]
[394173415,1763350241026,-151.0,0.000487,120]
[394173416,1763350241035,-151.0,0.000487,120]
[394173417,1763350241045,-151.0,0.000487,120]
[394173418,1763350241054,-237.457625,0.000487,120]
[394173419,1763350241064,-151.0,0.000487,120]
[394173420,1763350241073,-237.457625,0.000487,120]
[394173421,1763350241083,-237.457625,0.000487,120]
[394173422,1763350241092,-237.457625,0.000487,120]
[394173423,1763350241102,-187.95553136,0.000487,120]
[394173424,1763350241112,-483.508934,0.000487,120]
[394173425,1763350241121,-151.0,0.000487,120]
[394173426,1763350241131,-155.183638,0.000487,120]
[394173427,1763350241140,-483.508934,0.000487,120]
[394173428,1763350241150,-483.508934,0.000487,120]
[394173429,1763350241159,-483.508934,0.000487,120]
[394173430,1763350241168,-153.459886,0.000487,30]
[394173431,1763350241177,-151.0,0.000487,120]
[394173432,1763350241186,-151.0,0.000487,120]
[394173433,1763350241196,-151.0,0.000487,120]
[394173434,1763350241205,-227.49909,0.000487,120]
[394173435,1763350241214,-151.0,0.000487,120]
[394173436,1763350241223,-227.49909,0.000487,120]
[394173437,1763350241232,-151.0,0.000487,120]
[394173438,1763350241242,-227.49909,0.000487,120]
[394173439,1763350241251,-227.49909,0.000487,120]
[394173440,1763350241260,-151.0,0.000487,120]
[394173441,1763350241270,-151.0,0.000487,120]
[394173442,1763350241279,-151.0,0.000487,120]
[394173443,1763350241289,-151.0,0.000487,120]
[394173444,1763350241297,-151.0,0.000487,120]
[394173445,1763350241306,-156.400286,0.000487,120]
[394173446,1763350241315,-151.0,0.000487,120]
[394173447,1763350241327,-151.0,0.00048771,30]
[394173448,1763350241336,-151.0,0.00048771,120]
[394173449,1763350241345,-182.577132,0.00048771,120]
[394173450,1763350241354,-182.577132,0.00048771,120]
[394173451,1763350241364,-182.577132,0.00048771,120]
[394173452,1763350241373,-182.577132,0.00048771,120]
[394173453,1763350241385,-152.836371,0.00048771,120]
[394173454,1763350241399,-151.0,0.00048771,120]
[394173455,1763350241411,-151.0,0.00048771,120]
[394173456,1763350241423,-151.0,0.00048771,120]
[394173457,1763350241433,-208.442531,0.00048771,120]
[394173458,1763350241444,-208.442531,0.00048771,120]
[394173459,1763350241457,-208.442531,0.00048771,120]
[394173460,1763350241468,-208.442531,0.00048771,120]
[394173461,1763350241480,-251.495585,0.00048771,120]
[394173462,1763350241493,-251.495585,0.00048771,120]
[394173463,1763350241508,-251.495585,0.00048771,120]
[394173464,1763350241520,-251.495585,0.00048771,120]
[394173465,1763350241532,-151.0,0.00048771,120]
[394173466,1763350241545,-151.0,0.00048771,120]
[394173467,1763350241559,-151.0,0.00048771,120]
[394173468,1763350241574,-151.0,0.00048771,120]
[394173469,1763350241587,-151.0,0.00048771,120]
[394173470,1763350241601,-150.0,0.00048773,7]
[394173471,1763350241613,-151.0,0.0004878,120]
[394173472,1763350241625,-151.0,0.0004878,120]
[394173473,1763350241637,-151.0,0.0004878,120]
[394173474,1763350241650,-151.401774,0.0004878,120]
[394173475,1763350241662,-154.477104,0.0004878,120]
[394173476,1763350241675,-151.0,0.0004878,120]
[394173477,1763350241687,-151.0,0.0004878,120]
[394173478,1763350241699,-151.0,0.0004878,120]
[394173479,1763350241710,-216.42092964,0.00048789,30]
[394173480,1763350241721,-150.0,0.00048789,4]
[394173481,1763350241732,-151.0,0.0004879,120]
[394173482,1763350241744,-151.0,0.0004879,2]
[394173483,1763350241756,-151.0,0.0004879,2]
[394173484,1763350241767,-151.0,0.0004879,2]
[394173485,1763350241779,-151.0,0.0004879,2]
[394173486,1763350241791,-151.0,0.0004879,120]
[394173487,1763350241804,-151.0,0.0004879,120]
[394173488,1763350241816,-151.0,0.0004879,120]
[394173489,1763350241828,-151.0,0.0004879,120]
[394173490,1763350241838,-151.0,0.0004879,15]
[394173491,1763350241848,-151.0,0.0004879,15]
[394173492,1763350241858,-151.0,0.0004879,120]
[394173493,1763350241869,-203.21851301,0.00048799,30]
[394173494,1763350241881,-70568.89911983,0.000488,2]
[394173507,1763350243163,192.0,0.00038342,120]
[394173538,1763350792441,221.26663567,0.00028986,2]
[394173541,1763350930630,14520.43774491,0.00028,14]
[394173542,1763350930656,25000.0,0.00028,14]
[394173543,1763350930683,25000.0,0.00028,14]
[394173544,1763350941759,-2434.62377379,0.00028,14]
[394173545,1763350944327,-204.0,0.00028,14]
[394173546,1763350945917,2026.894033,0.00028,2]
[394173548,1763350948926,-1968.64951715,0.00028,14]
[394173549,1763350950469,-886.41278314,0.00028,14]
[394173550,1763350954118,205.73643919,0.00027999,2]
[394173551,1763350954161,500.0,0.00027999,2]
[394173552,1763350954210,461.73015258,0.00027999,2]
[394173553,1763350998730,150.0,0.0002589,2]
[394173556,1763351025915,24850.0,0.0002699,2]
[394173558,1763351144792,1245.12,0.00025999,2]
[394173560,1763351196796,151.0,0.0003833,31]
[394173561,1763351197081,151.0,0.0003833,120]
[394173562,1763351197388,151.0,0.0003833,120]
[394173563,1763351197671,151.0,0.0003833,120]
[394173564,1763351233139,-2101.13159836,0.0002699,2]
[394173565,1763351241281,-1167.17150494,0.0002699,2]
[394173566,1763351243553,-464.47914947,0.0002699,2]
[394173567,1763351243576,-493.26085056,0.00027888,2]
[394173568,1763351245460,-706.73914944,0.00027888,2]
[394173569,1763351245488,-35.52085056,0.00027889,2]
[394173570,1763351248866,-264.47914944,0.00027889,2]
[394173571,1763351248898,-20.15377333,0.0002789,2]
[394173572,1763351251755,-155.00757,0.0002789,2]
[394173573,1763351255211,-1.83865667,0.0002789,2]
[394173574,1763351255233,-149.16134333,0.0002789,2]
[394173575,1763351261959,151.0,0.0003833,31]
[394173576,1763351312893,160.0,0.00038326,31]
[394173577,1763351313123,160.0,0.00038326,120]
[394173578,1763351313538,160.0,0.00038326,120]
[394173579,1763351313746,160.0,0.00038326,120]
[394173580,1763351314303,160.0,0.00038326,31]
[394173581,1763351314342,150.0,0.0002589,2]
[394173582,1763351314582,160.0,0.00038326,120]
[394173583,1763351314888,160.0,0.00038326,120]
[394173584,1763351315492,160.0,0.00038326,120]
[394173585,1763351316067,160.0,0.00038326,31]
[394173586,1763351316351,160.0,0.00038326,120]
[394173587,1763351316669,160.0,0.00038326,120]
[394173588,1763351317262,160.0,0.00038326,120]
[394173589,1763351317819,160.0,0.00038326,31]
[394173590,1763351318148,160.0,0.00038326,120]
[394173591,1763351318428,160.0,0.00038326,120]
[394173592,1763351318710,160.0,0.00038326,120]
[394173594,1763351359521,151.0,0.00038326,31]
[394173595,1763351359819,151.0,0.00038326,120]
[394173596,1763351360117,197.0868,0.00038326,120]
[394173597,1763351377506,-219.40292443,0.00027766,2]
[394173598,1763351377531,-80.59707557,0.00027866,2]
[394173599,1763351413173,151.0,0.00038326,31]
[394173600,1763351413452,151.0,0.00038326,120]
[394173601,1763351413765,151.0,0.00038326,120]
[394173602,1763351414068,151.0,0.00038326,120]
[394173603,1763351414734,151.0,0.00038326,31]
[394173604,1763351415012,151.0,0.00038326,120]
[394173627,1763351432715,-300.0,0.00027866,2]
[394173628,1763351432726,-705.0,0.00027866,2]
[394173629,1763351432740,-8069.07500632,0.00027867,2]
[394173630,1763351432750,-5690.39864205,0.0002787,2]
[394173631,1763351432760,-177.0,0.0002789,2]
[394173632,1763351432770,-500.0,0.00027966,2]
[394173633,1763351432780,-500.0,0.00027966,2]
[394173634,1763351432790,-500.0,0.00027966,2]
[394173635,1763351432800,-500.0,0.00027966,2]
[394173636,1763351432809,-500.0,0.00027966,2]
[394173637,1763351432819,-500.0,0.00027966,2]
[394173638,1763351432828,-500.0,0.00027966,2]
[394173639,1763351432838,-500.0,0.00027966,2]
[394173640,1763351432848,-500.0,0.00027966,2]
[394173641,1763351432857,-31471.72708395,0.00027967,2]
[394173642,1763351434582,203.970354,0.00013699,2]
[394173643,1763351434805,203.970354,0.00020187,2]
[394173644,1763351435374,-177.0,0.00026676,2]
[394173834,1763351440276,-3e-08,0.00026676,2]
[394173850,1763351493154,500.0,0.00027966,120]
[394173851,1763351493421,500.0,0.00027966,120]
[394173852,1763351493718,500.0,0.00027966,120]
[394173853,1763351494009,500.0,0.00027966,120]
[394173854,1763351494328,500.0,0.00027966,120]
[394173855,1763351494544,500.0,0.00027966,120]
[394173856,1763351494782,500.0,0.00027966,120]
[394173857,1763351495032,500.0,0.00027966,120]
[394173858,1763351508268,500.0,0.00027977,120]
[394173859,1763351508525,623.9818945,0.00027977,120]
[394173862,1763351629109,279.58756699,0.00027977,120]
[394173863,1763351630769,150.0,0.0002589,2]
[394173865,1763351743959,5000.0,0.00026,2]
[394173866,1763351751874,5000.0,0.00026,2]
[394173867,1763351767097,500.0,0.00027966,120]
[394173868,1763351767172,5000.0,0.00026,2]
[394173869,1763351767699,500.0,0.00027966,120]
[394173870,1763351767963,532.7368205,0.00027966,120]
[394173871,1763351775656,5000.0,0.00026,2]
[394173872,1763351790909,3046.939292,0.00026,2]
[394173873,1763351798735,5000.0,0.00025,2]
[394173874,1763351821312,295.81601776,0.00025,2]
[394173875,1763351838991,181.17890674,0.00027966,120]
[394173876,1763351983847,19704.18398224,0.00022,2]
[394173877,1763351983871,24834.629558,0.00022,2]
[394173878,1763351983895,25000.0,0.00022,2]
[394173879,1763351983918,11237.62645976,0.00022,2]
[394173880,1763352121326,273.0,0.00032,120]
[394173881,1763352133008,200.0,0.00032,120]
[394173885,1763352431130,-158.11418997,0.00025136,2]
[394173886,1763352431150,-150.0,0.0002517,2]
[394173887,1763352431169,-300.0,0.00025235,2]
[394173888,1763352431188,-922.42942489,0.00025236,2]
[394173889,1763352483072,197.43,0.00016384,7]
[394173890,1763352483272,194.71,0.00016384,7]
[394173892,1763352616465,151.0,0.00038327,120]
[394173893,1763352618294,151.0,0.00038327,120]
[394173894,1763352620153,152.917544,0.00038327,120]
[394173895,1763352621060,1000.0,0.00032,120]
[394173921,1763352632250,-3448.6683908,0.00024486,2]
[394173935,1763352638126,-1551.3316092,0.00024486,2]
[394173936,1763352638136,-5000.0,0.00024733,2]
[394173937,1763352638145,-150.0,0.00024858,2]
[394173938,1763352638155,-2529.09782207,0.00024983,2]
[394173939,1763352638165,-500.0,0.00024989,2]
[394173940,1763352638174,-502.38036453,0.00024989,2]
[394173941,1763352638184,-576.44576447,0.00024989,2]
[394173942,1763352638194,-500.0,0.00024989,2]
[394173943,1763352638203,-500.0,0.00024989,2]
[394173944,1763352638213,-500.0,0.00024989,2]
[394173945,1763352638222,-500.0,0.00024989,2]
[394173946,1763352638232,-500.0,0.00024989,2]
[394173947,1763352638242,-500.0,0.00024989,2]
[394173948,1763352638251,-500.0,0.00024989,2]
[394173949,1763352638261,-500.0,0.00024989,2]
[394173950,1763352638270,-500.0,0.00024989,2]
[394173951,1763352638279,-500.0,0.00024989,2]
[394173952,1763352638289,-500.0,0.00024989,2]
[394173953,1763352638298,-500.0,0.00024989,2]
[394173954,1763352638307,-500.0,0.00024989,2]
[394173955,1763352638316,-500.0,0.00024989,2]
[394173956,1763352638326,-500.0,0.00024989,2]
[394173957,1763352638338,-500.0,0.00024989,2]
[394173958,1763352638349,-500.0,0.00024989,2]
[394173959,1763352638358,-500.0,0.00024989,2]
[394173960,1763352638367,-500.0,0.00024989,2]
[394173961,1763352638377,-500.0,0.00024989,2]
[394173962,1763352638386,-500.0,0.00024989,2]
[394173963,1763352638396,-500.0,0.00024989,2]
[394173964,1763352638405,-500.0,0.00024989,2]
[394173965,1763352638414,-613.69449414,0.00024989,2]
[394173966,1763352638426,-500.0,0.00024989,2]
[394173967,1763352638435,-500.0,0.00024989,2]
[394173968,1763352638444,-500.0,0.00024989,2]
[394173969,1763352638454,-500.0,0.00024989,2]
[394173970,1763352638463,-500.0,0.00024989,2]
[394173971,1763352638472,-500.0,0.00024989,2]
[394173972,1763352638481,-500.0,0.00024989,2]
[394173973,1763352638491,-369.27733624,0.00024989,2]
[394173974,1763352638501,-500.0,0.00024989,2]
[394173975,1763352638510,-500.0,0.00024989,2]
[394173976,1763352638520,-500.0,0.00024989,2]
[394173977,1763352638529,-500.0,0.00024989,2]
[394173978,1763352638539,-500.0,0.00024989,2]
[394173979,1763352638548,-450.0,0.00024989,2]
[394173980,1763352638558,-500.0,0.00024989,2]
[394173981,1763352638567,-500.0,0.00024989,2]
[394173982,1763352638577,-500.0,0.00024989,2]
[394173983,1763352638586,-500.0,0.00024989,2]
[394173984,1763352638596,-500.0,0.00024989,2]
[394173985,1763352638606,-500.0,0.00024989,2]
[394173986,1763352638615,-500.0,0.00024989,2]
[394173987,1763352638625,-500.0,0.00024989,2]
[394173988,1763352638634,-500.0,0.00024989,2]
[394173989,1763352638644,-500.0,0.00024989,2]
[394173990,1763352638654,-500.0,0.00024989,2]
[394173991,1763352638663,-500.0,0.00024989,2]
[394173992,1763352638673,-500.0,0.00024989,2]
[394173993,1763352638682,-500.0,0.00024989,2]